Cogmind - Beta 15 @@@ ROGUE MODE // 2025.05.06 @ 17:16:45 Player: MolePlayingNice Result: Destroyed by G-73 Enforcer with Heavy Laser Performance ------------- Evolutions (8) 4000 Regions Visited (18) 3600 Robots Destroyed (180) 900 Value Destroyed (5975) 5975 Prototype IDs (38) 760 Alien Tech Used (0) 0 Bonus (4683) 4683 TOTAL SCORE: 19918 Bonus ------- High Alert Combat Kills 189 Follower Combat Kills 3094 Registered with UFD 300 Met Optimus in HQ 500 Built Enhanced Grunts 300 A7 Reached Mainframe 300 Cogmind --------- Core Integrity 0/1450 Matter 295/300 Energy 89/100 System Corruption 0% Temperature Cool (38) Movement Core (50) Location -2/Research Parts ------- > --- POWER (2) -------- (None) > --- PROPULSION (6) --- (None) > --- UTILITY (11) ----- Experimental Optical Array Improved Hacking Suite Advanced System Shield Advanced System Shield > --- WEAPON (4) ------- (None) > --- INVENTORY (5) ---- Tesla Rifle Enhanced Hardcell Cannon Large Botcube Peak State ------------ > --- POWER ------------ Backup Power VII Backup Power VII > --- PROPULSION ------- Improved Antigrav System Cooled Linear Gravjet Impulse Thruster Impulse Thruster Array > --- UTILITY ---------- Experimental Optical Array Improved Targeting Computer Core Analyzer Advanced Phase Shifter Medium Insulated Plating Improved Hacking Suite Improved Hacking Suite System Shield Advanced System Shield Advanced System Shield Authchip [Propulsion] > --- WEAPON ----------- Backup Laser VII Backup Laser VII > --- INVENTORY -------- Myomer Leg Tesla Rifle Enhanced Hardcell Cannon Large Botcube [Rating: 128] Favorites ----------- Power Heavy Ion Engine Engine Heavy Ion Engine Power Core Enhanced Fission Core Reactor Particle Reactor Propulsion Armored Treads Treads Armored Treads Leg Aluminum Leg Wheel Armored Wheel Hover Unit Combat Airjet Flight Unit Improved Flight Unit Utility High-capacity Storage Unit Device Improved Heat Sink Storage High-capacity Storage Unit Processor Machine Analyzer Hackware Advanced System Shield Protection Heavy Armor Plating Weapon Assault Cannon Energy Gun EM Shotgun Energy Cannon EM Pulse Cannon Ballistic Gun Light Assault Rifle Ballistic Cannon Assault Cannon Launcher Grenade Launcher Special Weapon CPS Tube Slashing Weapon Katana Piercing Weapon Kinetic Spear Build | -11 -10 -10 -9 -9 -8 -8 -8 -8 -6 -6 -6 -5 -5 -5 -5 -4 -3 -2 ------- Run | Yrd Mat Min Mat Min Mat Sto Rec Scr Fac Was Fac Fac Ext Cet Arc Fac Res Res Slots Evolved 16 | . . . 2 . 2 . . . 4 . . 2 . . . 2 2 2 Power 1 | . . . . . . . . . . . . . . . . . 1 . Propulsion 4 | . . . 1 . 1 . . . 1 . . . . . . . 1 . Utility 9 | . . . 1 . 1 . . . 3 . . 2 . . . 1 . 1 Weapon 2 | . . . . . . . . . . . . . . . . 1 . 1 Parts Attached 201 | . 13 5 12 5 22 8 . 6 14 . 28 26 16 3 9 14 6 14 Power 16 | . 1 1 2 . 2 1 . . 1 . 3 4 . . 1 . . . Engine 8 | . 1 1 1 . 2 1 . . 1 . 1 . . . . . . . Core 7 | . . . 1 . . . . . . . 2 4 . . . . . . Reactor 1 | . . . . . . . . . . . . . . . 1 . . . Propulsion 66 | . 3 . 3 3 10 2 . 1 6 . 11 5 4 . 3 6 2 7 Treads 19 | . 2 . . 2 10 1 . . . . . . . . 3 1 . . Leg 8 | . 1 . 3 . . . . . . . . . . . . 3 . 1 Wheel 1 | . . . . 1 . . . . . . . . . . . . . . Hover 20 | . . . . . . 1 . . . . 5 5 4 . . 1 2 2 Flight 18 | . . . . . . . . 1 6 . 6 . . . . 1 . 4 Utility 80 | . 3 . 2 2 6 2 . 3 6 . 13 12 11 1 5 5 2 7 Device 29 | . 2 . . 1 2 2 . 2 3 . 4 6 3 . . 1 . 3 Storage 8 | . 1 . 1 1 . . . 1 . . 1 1 1 . . . 1 . Processor 13 | . . . 1 . 1 . . . 1 . 4 . 2 . . 1 1 2 Hackware 19 | . . . . . . . . . 2 . 3 3 3 . 5 2 . 1 Protection 11 | . . . . . 3 . . . . . 1 2 2 1 . 1 . 1 Artifact . | . . . . . . . . . . . . . . . . . . . Weapon 39 | . 6 4 5 . 4 3 . 2 1 . 1 5 1 2 . 3 2 . Energy Gun 8 | . 5 . . . . . . . . . . . . 1 . . 2 . Energy Cannon 10 | . . . 4 . 2 1 . . . . . . . . . 3 . . Ballistic Gun 4 | . . 2 . . . 1 . . . . . . . 1 . . . . Ballistic Cannon 1 | . . . . . 1 . . . . . . . . . . . . . Launcher 7 | . 1 2 1 . 1 1 . . . . 1 . . . . . . . Special Weapon 1 | . . . . . . . . . 1 . . . . . . . . . Impact Weapon . | . . . . . . . . . . . . . . . . . . . Slashing Weapon 5 | . . . . . . . . 2 . . . 2 1 . . . . . Piercing Weapon 3 | . . . . . . . . . . . . 3 . . . . . . Special Melee Weapon . | . . . . . . . . . . . . . . . . . . . Unidentified Prototypes 26 | . . . 2 . . 6 . . 2 . . 5 2 3 . 3 . 3 Corrupted Parts 2 | . . . . 1 . . . . 1 . . . . . . . . . System Corruption 3 | . . . . 1 . . . . 2 . . . . . . . . . Parts Lost 74 | . 6 . 1 . 1 . . . . . 15 11 12 . . 4 9 15 Power 8 | . 1 . . . . . . . . . 3 2 . . . . . 2 Propulsion 26 | . . . 1 . . . . . . . 7 3 5 . . 1 3 6 Utility 29 | . 1 . . . . . . . . . 3 6 6 . . 2 4 7 Weapon 11 | . 4 . . . 1 . . . . . 2 . 1 . . 1 2 . Highest Loss Streak 9 | . 3 . 1 . 1 . . . . . 5 3 9 . . 1 7 8 To Critical Strikes 2 | . . . . . . . . . . . 1 1 . . . . . . Average Backups 14 | 6 12 18 19 19 19 19 19 19 10 6 5 7 5 2 3 2 3 2 Power . | 1 1 1 1 1 . . 1 1 . . . . . . . . . . Propulsion 4 | 4 2 4 5 7 7 7 7 6 2 2 2 1 . . . . . . Utility 4 | . 3 5 5 4 4 5 6 7 4 2 2 3 2 1 2 1 2 . Weapon 4 | 1 4 8 7 6 6 5 4 3 2 1 . 1 2 1 1 1 . 1 Tool/Special . | . . . . . . . . . . . . . . . . . . . Unused Backups 37 | . 1 . 9 1 4 7 1 2 4 1 2 2 1 . . 1 . 1 Power 5 | . . . 3 . . . . . 1 . . 1 . . . . . . Propulsion 2 | . . . . . . 1 1 . . . . . . . . . . . Utility 14 | . 1 . 1 1 2 4 . . 2 . 2 1 . . . . . . Weapon 13 | . . . 4 . 2 1 . 2 . 1 . . 1 . . 1 . 1 Tool/Special 3 | . . . 1 . . 1 . . 1 . . . . . . . . . Average Slot Usage (%) 89 | . 81 97 94 100 92 89 90 91 95 100 89 89 82 83 96 77 75 60 Engine 6 | . 8 13 7 11 8 9 9 9 6 6 3 . . . . . . . Treads 19 | . 16 28 6 21 35 35 36 34 2 . . . . . 11 8 . . Leg 2 | . 10 . 23 9 . . . . . . . . . . . 2 8 . Hover 4 | . . . . . . . . . . . 6 25 17 17 13 6 13 10 Flight 2 | . . . . . . . . 1 29 33 24 . . . . 1 3 4 Device 8 | . 6 12 11 11 7 9 9 10 24 20 6 6 7 6 5 . . 1 Storage 7 | . 14 14 11 11 9 9 9 10 6 6 6 5 2 . . . 3 . Processor 6 | . . . 8 11 3 . . . 4 6 16 11 17 17 12 8 10 12 Hackware 7 | . . . . . . . . . 6 13 13 20 17 17 25 29 27 22 Protection 4 | . . . . . 8 8 9 7 . . 1 3 . 7 7 8 2 . Energy Gun 1 | . 17 . . . . . . . . . . . . . . . 2 3 Energy Cannon 6 | . . . 17 22 10 9 9 7 . . . . . . . . . . Ballistic Gun 1 | . . 25 4 . . . . . . . . . . 1 5 3 . . Ballistic Cannon 3 | . . . . . 6 8 9 7 . . . . . . . . . . Slashing Weapon 2 | . . . . . . . . 3 10 6 5 6 7 5 5 3 . . Peak Build Rating 128 | 6 10 9 21 22 39 42 40 42 56 54 69 93 91 80 91 109 106 128 Average Rating 46 | 6 8 8 17 20 34 38 39 39 48 54 54 78 69 72 87 88 96 90 On Entrance 43 | 6 6 5 9 20 21 35 40 40 36 54 54 50 71 69 80 91 87 57 Naked Turns . | . . . . . . . . . . . . . . . . . . . Heaviest Build 85 | 13 52 48 61 62 85 82 77 82 58 24 28 51 32 38 43 49 24 23 Greatest Support 114 | 20 40 40 40 60 82 82 80 80 60 25 48 60 58 28 84 114 56 38 Greatest Overweight (x) 5 | . 1 1 2 5 5 1 . 1 2 . 2 1 1 1 1 4 . 1 Average Overweight (x) . | . . 1 1 1 . . . . . . . . . . . . . . Largest Inventory Capacity 25 | 8 20 20 20 25 20 20 20 20 20 8 10 10 10 5 5 5 10 5 Average Capacity 15 | 8 15 20 20 20 20 20 20 20 14 8 8 10 7 5 5 5 8 5 Most Carried 20 | 6 20 20 20 20 20 20 20 20 20 8 9 10 10 5 5 5 7 5 Average Carried 14 | 6 12 18 19 19 19 19 19 19 12 8 7 9 7 4 4 4 5 4 Final Capacity 20 | 8 20 20 20 20 20 20 20 20 8 8 10 10 5 5 5 5 5 5 Final Carried 20 | 6 20 20 20 20 20 20 20 20 8 8 8 9 5 5 5 5 5 4 Class Distribution -------------------- 31% | Mutant 28% | Commander-Mutant 9% | Hacker-Mutant 9% | Scavenger-Mutant 8% | Wizard-Mutant 3% | Hacker-Scout 3% | Hacker-Ninja Dominant Class ---------------- Mutant | -10/Materials Scavenger-Mutant | -10/Mines Mutant | -9/Materials Mutant | -9/Mines Mutant | -8/Materials Mutant | -8/Storage Commander-Mutant | -8/Recycling Commander-Mutant | -8/Scraptown Commander-Mutant | -6/Factory Sprinter | -6/Waste Hacker-Scout | -6/Factory Hacker-Mutant | -5/Factory Hacker-Mutant | -5/Extension Commander-Mutant | -5/Cetus Scavenger-Mutant | -5/Archives Wizard-Mutant | -4/Factory Wizard-Mutant | -3/Research Hacker-Mutant | -2/Research Resources | -11 -10 -10 -9 -9 -8 -8 -8 -8 -6 -6 -6 -5 -5 -5 -5 -4 -3 -2 ----------- Run | Yrd Mat Min Mat Min Mat Sto Rec Scr Fac Was Fac Fac Ext Cet Arc Fac Res Res Matter Collected 3981 | 200 174 130 156 63 689 398 . 85 . . 570 431 224 94 163 372 119 113 Remotely . | . . . . . . . . . . . . . . . . . . . Salvage Created 6899 | . 584 29 924 117 1591 915 184 . . . 599 1086 328 . 218 129 195 . Parts 399 | . 38 11 50 7 86 48 10 . . . 45 68 5 . 19 10 2 . Haulers Intercepted 8 | . 1 . 2 . 4 1 . . . . . . . . . . . . Recyclers Shooed 5 | . 1 . 2 . . . . . . . . . 1 . . 1 . . Parts Field Recycled . | . . . . . . . . . . . . . . . . . . . Retrieved Matter . | . . . . . . . . . . . . . . . . . . . Parts Self-Destructed . | . . . . . . . . . . . . . . . . . . . Prevented . | . . . . . . . . . . . . . . . . . . . Kills | -11 -10 -10 -9 -9 -8 -8 -8 -8 -6 -6 -6 -5 -5 -5 -5 -4 -3 -2 ------- Run | Yrd Mat Min Mat Min Mat Sto Rec Scr Fac Was Fac Fac Ext Cet Arc Fac Res Res Combat Hostiles Destroyed 128 | . 15 6 16 4 32 18 2 . . . 14 17 2 . . 1 1 . Melee 27 | . . . . . . . . . . . 7 17 2 . . 1 . . Guns 9 | . 9 . . . . . . . . . . . . . . . . . Cannons 59 | . . . 12 4 24 17 2 . . . . . . . . . . . AOE 29 | . 6 6 4 . 6 . . . . . 7 . . . . . . . Classes Destroyed 17 | . 5 . 4 1 1 4 . . . . 2 . . . . . . . Worker 9 | . 1 1 2 . 2 . . . . . 2 . . . . 1 . . Builder 3 | . . . . . . . . . . . 2 . . . . 1 . . Tunneler 1 | . . . 1 . . . . . . . . . . . . . . . Hauler 8 | . 1 . 2 . 4 1 . . . . . . . . . . . . Recycler 8 | . . . 1 . 1 . 2 . . . . 2 1 . . . 1 . Operator 12 | . . . 1 . . . . . . . 2 1 . . 7 1 . . Watcher 11 | . 3 . 2 . 2 . . . . . 3 . 1 . . . . . Swarmer 40 | . 5 6 4 2 7 . . . . . 11 5 . . . . . . Grunt 40 | . 10 . 9 1 15 3 . . . . . . 2 . . . . . Brawler 2 | . . . . 1 . 1 . . . . . . . . . . . . Duelist 1 | . . . . . . 1 . . . . . . . . . . . . Protector 1 | . . . . . . 1 . . . . . . . . . . . . Sentry 25 | . . . 3 . 9 9 2 . . . 1 . . . . . 1 . Demolisher 1 | . . . . . . 1 . . . . . . . . . . . . Hunter 6 | . . . . . . 2 . . . . . 4 . . . . . . Programmer 11 | . . . . . . . . . . . 2 8 . . . 1 . . Heavy 1 | . . . . . 1 . . . . . . . . . . . . . Best Kill Streak 9 | . 6 5 6 2 7 3 3 . . . 9 5 1 . 4 1 1 . Combat Bots Only 7 | . 5 5 4 2 7 3 1 . . . 7 4 1 . . 1 1 . Max Kills in Single Turn 4 | . 2 3 4 1 4 2 1 . . . 2 1 1 . 1 1 1 . Gunslinging 1 | . 1 . . . . . . . . . . . . . . . . . Exploded 4 | . 2 3 4 . 4 . . . . . 2 . . . . . . . Melee 1 | . . . . . . . . . . . 1 1 1 . . 1 . . Uniques/NPCs Destroyed . | . . . . . . . . . . . . . . . . . . . Combat | -11 -10 -10 -9 -9 -8 -8 -8 -8 -6 -6 -6 -5 -5 -5 -5 -4 -3 -2 -------- Run | Yrd Mat Min Mat Min Mat Sto Rec Scr Fac Was Fac Fac Ext Cet Arc Fac Res Res Hostile Shots Fired 1347 | . 82 19 43 10 145 48 2 . . . 339 234 56 . 2 128 70 169 Missed 477 | . 22 7 15 4 27 9 1 . . . 167 80 19 . 1 43 14 68 Hits 870 | . 60 12 28 6 118 39 1 . . . 172 154 37 . 1 85 56 101 Melee 20 | . . . . 2 . 3 . . . . . . . . . . . 15 Projectile 850 | . 60 12 28 4 118 36 1 . . . 172 154 37 . 1 85 56 86 AOE 3 | . . . . . . 2 . . . . . 1 . . . . . . Critical Strikes 41 | . . . 2 2 7 3 . . . . 3 9 4 . . 3 . 8 Part Disruptions 1 | . . . . . . . . . . . . . . . . . 1 . Damage Taken 15766 | . 814 126 361 137 2047 709 14 . . . 2409 2800 869 . 28 1666 1415 2371 Core 4167 | . 145 46 31 41 185 46 . . . . 726 529 223 . . 339 391 1465 Absorbed by Shields 42 | . . . . . . . . . . . . 42 . . . . . . Ignored by Resistances 25 | . . . . . . . . . . . . . . . . . . 25 Regen/Repaired (Parts) 1053 | . 77 . . . . 261 . . . . 114 418 11 28 . 19 125 . Core Remaining (%) 55 | 100 . 23 . 82 . . . 58 . . 14 . . . 24 70 69 . Volleys Fired 347 | . 34 4 42 10 124 53 4 . . . 8 . . 1 . 45 18 4 Largest 2 | . 2 1 2 2 2 2 2 . . . 1 . . 1 . 1 1 2 Hottest 240 | . 90 30 126 126 136 105 72 . . . 105 . . 240 . 88 94 100 Shots Fired 523 | . 58 4 66 14 206 89 5 . . . 8 . . 2 . 45 18 8 Gun 138 | . 52 . 14 . . . . . . . . . . 2 . 44 18 8 Cannon 367 | . . . 50 14 204 89 5 . . . 4 . . . . 1 . . Launcher 18 | . 6 4 2 . 2 . . . . . 4 . . . . . . . Special . | . . . . . . . . . . . . . . . . . . . Kinetic 183 | . . . 14 . 70 39 1 . . . . . . . . 44 15 . Thermal 152 | . . . . . 81 50 4 . . . 4 . . 2 . . 3 8 Explosive 18 | . 6 4 2 . 2 . . . . . 4 . . . . . . . Electromagnetic 170 | . 52 . 50 14 53 . . . . . . . . . . 1 . . Robot Hit Streak 14 | . 11 . 14 6 11 9 2 . . . 3 . . . . 3 14 1 Robot Miss Streak 4 | . 4 . 3 1 4 3 1 . . . . . . 1 . 2 1 4 Penetration Max . | . . . . . . . . . . . . . . . . . . . Secondary Targets 2 | . 2 . . . . . . . . . . . . . . . . . Max Gunslinging Chain 1 | . 1 . . . . . . . . . . . . . . . . . Shots Hit Robots 395 | . 41 . 46 11 131 38 3 . . . 29 39 20 . 10 11 15 1 Core Hits 253 | . 34 8 31 5 59 23 3 . . . 45 24 7 . 5 7 2 . Critical Kills 4 | . . . . . 2 1 . . . . . . . . . . 1 . Critical Parts Destroyed 3 | . . . . . . . . . . . . . . . . 1 2 . Critical Strikes 29 | . . . . 1 8 2 . . . . 3 8 3 . . 1 3 . Meltdown 3 | . . . . . 2 1 . . . . . . . . . . . . Destroy 4 | . . . . . . . . . . . . . . . . 1 3 . Blast 7 | . . . . . 6 1 . . . . . . . . . . . . Corrupt 1 | . . . . 1 . . . . . . . . . . . . . . Sever 9 | . . . . . . . . . . . 3 4 2 . . . . . Impale 5 | . . . . . . . . . . . . 4 1 . . . . . Melee Attacks 265 | . . . . . . . . . 4 . 113 96 27 . 11 14 . . Impact . | . . . . . . . . . . . . . . . . . . . Slashing 200 | . . . . . . . . . 4 . 113 50 8 . 11 14 . . Piercing 65 | . . . . . . . . . . . . 46 19 . . . . . Sneak Attacks 21 | . . . . . . . . . . . 4 4 2 . 9 2 . . Combat Hostiles . | . . . . . . . . . . . . . . . . . . . Follow-up Attacks 10 | . . . . . . . . . . . . 7 3 . . . . . Damage Inflicted 14982 | . 1016 274 1582 389 3498 1196 144 . . . 2015 1888 943 . 971 547 483 36 Guns 1337 | . 585 . 35 . . . . . . . . . . . . 255 439 23 Cannons 5836 | . . . 1159 280 3112 1181 104 . . . . . . . . . . . Explosions 2222 | . 413 260 341 40 362 . . . . . 806 . . . . . . . Melee 5235 | . . . . . . . . . . . 1179 1888 943 . 971 254 . . Ramming 352 | . 18 14 47 69 24 15 40 . . . 30 . . . . 38 44 13 Kinetic 2001 | . . . 35 . 929 448 . . . . . . . . . 255 334 . Thermal 2659 | . 70 . 155 40 1414 733 104 . . . 15 . . . . . 105 23 Explosive 1495 | . 343 260 186 . 224 . . . . . 482 . . . . . . . Electromagnetic 3240 | . 585 . 1159 280 907 . . . . . 309 . . . . . . . Impact . | . . . . . . . . . . . . . . . . . . . Slashing 3653 | . . . . . . . . . . . 1179 988 261 . 971 254 . . Piercing 1582 | . . . . . . . . . . . . 900 682 . . . . . Highest Corruption 16 | . . . . 1 . . . . 2 1 3 16 16 16 16 2 7 . Average Corruption 8 | . . . . 1 . . . . 1 1 1 6 16 16 16 1 5 . Corruption Purged 3 | . . . . . . . . . 1 1 . 1 . . . . . . Corruption Blocked . | . . . . . . . . . . . . . . . . . . . Effects 122 | . . . . . . . . . . 1 6 34 42 12 21 4 2 . Message Errors 35 | . . . . . . . . . . . 1 10 14 2 7 1 . . Matter Fused 25 | . . . . . . . . . . . 1 5 6 4 7 2 . . Heat Flow Errors 8 | . . . . . . . . . . . 1 3 3 . . . 1 . Energy Discharges 19 | . . . . . . . . . . . . 7 6 3 3 . . . Parts Rejected 3 | . . . . . . . . . . 1 . . 2 . . . . . Parts Fused 1 | . . . . . . . . . . . 1 . . . . . . . Data Loss (minor) 18 | . . . . . . . . . . . 2 3 8 1 3 1 . . Data Loss (major) 5 | . . . . . . . . . . . . 1 1 1 1 . 1 . Misfires 1 | . . . . . . . . . . . . . . 1 . . . . Alerts 3 | . . . . . . . . . . . . 1 2 . . . . . Misdirections 4 | . . . . . . . . . . . . 4 . . . . . . Overload Shots 3 | . . . . . . 1 . . . . 1 . . 1 . . . . Effects 1 | . . . . . . 1 . . . . . . . . . . . . Energy Bleed 1 | . . . . . . 1 . . . . . . . . . . . . Overflow Damage 847 | . 12 4 33 1 33 17 . . . . 191 77 208 . 224 47 . . Projectiles 63 | . . . 33 1 12 17 . . . . . . . . . . . . Explosions 49 | . 12 4 . . 21 . . . . . 12 . . . . . . . Melee 735 | . . . . . . . . . . . 179 77 208 . 224 47 . . Knockbacks 17 | . . . . . 13 3 . . . . . . . . . 1 . . Impact 2 | . . . . . 1 . . . . . . . . . . 1 . . Kinetic 13 | . . . . . 11 2 . . . . . . . . . . . . Secondary 2 | . . . . . 1 1 . . . . . . . . . . . . Self-Inflicted Damage 318 | . 145 26 27 26 48 . . . . . 28 . . . . 11 1 6 Shots 12 | . 6 1 2 1 1 . . . . . 1 . . . . . . . Rammed 30 | . 1 2 . 7 6 2 1 . . . 3 . . . . 5 1 2 Targets Rammed 53 | . 2 3 4 7 6 2 3 . . . 3 . . . . 5 16 2 Kicked 20 | . 1 . 4 . . . . . . . . . . . . . 15 . Crushed 3 | . . 1 . . . . 2 . . . . . . . . . . . Highest Temperature 372 | . 266 . 138 108 372 102 . . . . 76 213 331 192 . 34 106 46 Average Temperature 84 | . 106 . 36 64 86 33 . . . . 20 94 155 106 . 18 37 27 Received Heat Transfer 3076 | . 285 . 150 12 900 225 9 . . . 450 42 543 . 9 181 144 126 Siege Activations . | . . . . . . . . . . . . . . . . . . . Martial Activations . | . . . . . . . . . . . . . . . . . . . Shielding Activations . | . . . . . . . . . . . . . . . . . . . Robots Disrupted 1 | . . . . . . . . . . . 1 . . . . . . . Combat Hostiles . | . . . . . . . . . . . . . . . . . . . Robots Corrupted 2 | . . . 1 . 1 . . . . . . . . . . . . . Combat Hostiles . | . . . . . . . . . . . . . . . . . . . Parts Fried 16 | . 1 . 8 1 4 . . . . . 2 . . . . . . . Impact Corruptions . | . . . . . . . . . . . . . . . . . . . Robots Melted 3 | . . . . . 2 1 . . . . . . . . . . . . Combat Hostiles 3 | . . . . . 2 1 . . . . . . . . . . . . Parts Melted 7 | . . . . . 4 2 . . . . . . . . . . 1 . Heat Transferred 4302 | . 100 . 200 100 2444 1110 150 . . . 50 . . . . . 111 37 Parts Sabotaged . | . . . . . . . . . . . . . . . . . . . Parts Stolen . | . . . . . . . . . . . . . . . . . . . Parts Stripped . | . . . . . . . . . . . . . . . . . . . Power Chain Reactions 9 | . 2 . 4 . 1 . . . . . 2 . . . . . . . Alert | -11 -10 -10 -9 -9 -8 -8 -8 -8 -6 -6 -6 -5 -5 -5 -5 -4 -3 -2 ------- Run | Yrd Mat Min Mat Min Mat Sto Rec Scr Fac Was Fac Fac Ext Cet Arc Fac Res Res Maximum Alert Level 3 | . 1 . 1 . 2 3 1 . . . 2 2 1 1 . 2 . 1 Low Security (%) 59 | 100 98 100 52 100 38 1 22 . 100 100 38 51 81 99 100 34 100 94 Level 1 30 | . 1 . 47 . 46 76 77 . . . 2 41 18 . . 63 . 5 Level 2 8 | . . . . . 15 4 . . . . 58 6 . . . 1 . . Level 3 1 | . . . . . . 17 . . . . . . . . . . . . Level 4 . | . . . . . . . . . . . . . . . . . . . Level 5 . | . . . . . . . . . . . . . . . . . . . High Security . | . . . . . . . . . . . . . . . . . . . Max Security . | . . . . . . . . . . . . . . . . . . . Peak Influence 759 | . 205 149 317 103 607 759 356 . 15 15 699 556 272 209 149 426 188 240 Initial 328 | . . 57 . 103 23 252 278 . . . . 328 272 113 41 12 188 . Average 178 | . 91 39 162 21 229 367 248 . 3 2 325 219 75 148 82 274 34 59 Influence Increases 9485 | . 546 157 610 226 1284 1257 346 . 56 15 1545 977 481 181 278 871 149 506 Destroy 0b10 Robot/C 4000 | . 300 120 320 140 780 620 80 . . . 300 440 280 80 80 260 20 180 Destroy 0b10 Robot/NC 320 | . 25 5 45 . 45 25 10 . . . 45 25 15 5 40 25 5 5 Destroy Leader 910 | . 58 20 88 30 212 174 . . . . 86 100 22 . . 70 10 40 Allied During Kill 959 | . . . . 20 33 260 40 . . . 5 46 107 53 120 249 . 26 Successful Hack 335 | . 24 . 22 12 28 31 5 . 24 . 58 12 11 . . 18 54 36 Select Force Hacks 410 | . 60 . 60 . 30 . 210 . . . . 50 . . . . . . Disable Machine 630 | . 30 . 45 15 45 105 . . 15 . 225 45 . 15 30 60 . . Destroy Structure 541 | . 49 12 15 9 36 27 1 . 2 . 121 64 16 28 8 114 . 39 Partial Spotted 120 | . . . . . . . . . 15 15 45 . 15 . . . . 30 Lose Combat Pursuer 1260 | . . . 15 . 75 15 . . . . 660 195 15 . . 75 60 150 Influence Decreases 9293 | . 398 305 345 431 745 1141 911 150 55 16 874 1092 834 280 345 549 508 314 Entered New Map 2201 | . . 91 . 162 37 347 437 150 . 1 . 343 284 90 63 25 171 . Time Decay 5163 | . 338 214 335 269 638 534 474 . 41 10 412 559 246 150 222 410 187 124 Search Patrol Dispatched 300 | . . . . . . . . . . . 300 . . . . . . . Lost Part 516 | . 60 . 10 . 10 . . . . . 122 110 20 . . 34 . 150 Lost Ally 714 | . . . . . 60 260 . . 14 5 40 80 35 40 60 80 . 40 Purge Threat 399 | . . . . . . . . . . . . . 249 . . . 150 . Squads Dispatched 69 | . 2 . 5 . 8 3 . . 1 . 15 13 . . . 13 1 8 Investigation 28 | . 2 . 4 . 2 . . . 1 . 10 6 . . . . . 3 Extermination 14 | . . . . . . . . . . . 3 5 . . . 3 1 2 Reinforcement 16 | . . . 1 . 3 1 . . . . 2 2 . . . 4 . 3 Assault 2 | . . . . . . 2 . . . . . . . . . . . . Garrison 9 | . . . . . 3 . . . . . . . . . . 6 . . Intercept . | . . . . . . . . . . . . . . . . . . . Searches Triggered 2 | . . . . . . . . . . . 2 . . . . . . . Construction Impeded 1 | . . . . . 1 . . . . . . . . . . . . . Haulers Reinforced . | . . . . . . . . . . . . . . . . . . . Active Scanning Responses . | . . . . . . . . . . . . . . . . . . . Cargo Convoy Interrupts . | . . . . . . . . . . . . . . . . . . . Stealth | -11 -10 -10 -9 -9 -8 -8 -8 -8 -6 -6 -6 -5 -5 -5 -5 -4 -3 -2 --------- Run | Yrd Mat Min Mat Min Mat Sto Rec Scr Fac Was Fac Fac Ext Cet Arc Fac Res Res Distress Signals 23 | . 1 . 1 . 5 3 . . . . 4 1 . 1 . 2 . 5 Communications Jammed 1 | . . . . . . . . . . . . . 1 . . . . . Distress Signals 1 | . . . . . . . . . . . . . 1 . . . . . Times Spotted 369 | . 22 6 25 7 55 32 1 . . 5 75 45 19 1 5 19 8 44 Peak Tracking Total 24 | . 5 3 6 3 6 10 1 . . 4 15 10 5 1 1 6 4 24 Tactical Retreats 34 | . . . 1 . 3 1 . . . 1 14 6 1 . . 4 1 2 Traps | -11 -10 -10 -9 -9 -8 -8 -8 -8 -6 -6 -6 -5 -5 -5 -5 -4 -3 -2 ------- Run | Yrd Mat Min Mat Min Mat Sto Rec Scr Fac Was Fac Fac Ext Cet Arc Fac Res Res Traps Triggered 23 | . 3 . 1 . 1 2 . . 1 . 2 4 4 . . 1 . 4 Indirectly . | . . . . . . . . . . . . . . . . . . . Trap Hack Attempts . | . . . . . . . . . . . . . . . . . . . Triggered . | . . . . . . . . . . . . . . . . . . . Disarmed 1 | . . . . . . . . . . . . . 1 . . . . . Reprogrammed . | . . . . . . . . . . . . . . . . . . . Reused . | . . . . . . . . . . . . . . . . . . . Traps Extracted 4 | . . . . 4 . . . . . . . . . . . . . . Installed 1 | . . . . . . . . . 1 . . . . . . . . . Triggered . | . . . . . . . . . . . . . . . . . . . Most Traps Carried 5 | . . . . 4 4 4 4 5 5 4 4 4 4 . . . . . Machines | -11 -10 -10 -9 -9 -8 -8 -8 -8 -6 -6 -6 -5 -5 -5 -5 -4 -3 -2 ---------- Run | Yrd Mat Min Mat Min Mat Sto Rec Scr Fac Was Fac Fac Ext Cet Arc Fac Res Res Machines Disabled 45 | . 2 . 3 1 3 7 . . 1 . 15 3 3 1 2 4 . . Max in Single Turn 6 | . 1 . 1 1 1 1 . . 1 . 6 1 . 1 . 4 . . Garrison Access 5 | . . . . . . 1 . . 1 . 2 . . . . 1 . . Machines Repaired . | . . . . . . . . . . . . . . . . . . . Machines Dismantled . | . . . . . . . . . . . . . . . . . . . Machines Sabotaged . | . . . . . . . . . . . . . . . . . . . Overloaded Fab Kills . | . . . . . . . . . . . . . . . . . . . Hacking | -11 -10 -10 -9 -9 -8 -8 -8 -8 -6 -6 -6 -5 -5 -5 -5 -4 -3 -2 --------- Run | Yrd Mat Min Mat Min Mat Sto Rec Scr Fac Was Fac Fac Ext Cet Arc Fac Res Res Machines Accessed 109 | . 10 . 6 1 10 11 10 2 5 . 19 15 7 1 . 4 2 6 Terminals 60 | . 7 . 4 1 8 9 3 . 2 . 7 4 7 1 . 3 2 2 Fabricators 5 | . . . . . . . . . . . 3 2 . . . . . . Repair Stations 8 | . 1 . . . . 1 . . . . 1 4 . . . . . 1 Recycling Units 27 | . 2 . 2 . 1 . 7 . 1 . 6 5 . . . . . 3 Scanalyzers 2 | . . . . . 1 . . . 1 . . . . . . . . . Garrison Access 5 | . . . . . . 1 . . 1 . 2 . . . . 1 . . Total Hacks 256 | . 31 . 11 3 22 21 15 4 9 . 44 34 19 2 . 15 10 16 Successful 123 | . 11 . 5 3 5 11 9 4 4 . 22 24 11 . . 3 5 6 Failed 133 | . 20 . 6 . 17 10 6 . 5 . 22 10 8 2 . 12 5 10 Catastrophic 33 | . 1 . 3 . 6 4 . . 1 . 8 . 2 2 . 2 1 3 Database Lockouts . | . . . . . . . . . . . . . . . . . . . Manual 118 | . 22 . 9 3 11 7 11 . 1 . 26 7 4 1 . 3 1 12 Terminals 168 | . 26 . 8 3 19 18 7 . 4 . 23 8 19 2 . 13 10 8 Fabricators 13 | . . . . . . . . . . . 8 5 . . . . . . Repair Stations 21 | . 3 . . . . 2 . . . . 2 13 . . . . . 1 Recycling Units 36 | . 2 . 3 . 1 . 8 . 1 . 6 8 . . . . . 7 Scanalyzers 5 | . . . . . 2 . . . 3 . . . . . . . . . Garrison Access 9 | . . . . . . 1 . . 1 . 5 . . . . 2 . . Terminal Hacks 50 | . 1 . 2 3 3 7 2 4 1 . 5 3 10 . . 2 5 2 Record 3 | . . . . . . . . 3 . . . . . . . . . . Part Schematic 3 | . . . . . . . . . 1 . . 1 . . . 1 . . Robot Analysis 2 | . . . . . 1 1 . . . . . . . . . . . . Prototype ID Bank 3 | . . . . 3 . . . . . . . . . . . . . . Open Door 9 | . . . . . . 3 . . . . . 1 5 . . . . . Branch Access Points 2 | . . . . . 1 . . . . . . . . . . . . 1 Terminal Index 6 | . 1 . . . . . . . . . 1 1 1 . . 1 1 . Fabricator Index 3 | . . . . . . . . . . . 2 . . . . . 1 . Recycling Unit Index 1 | . . . . . . . . . . . . . . . . . . 1 Unreport Threat 4 | . . . . . . . . . . . . . 3 . . . 1 . Disarm Traps 1 | . . . . . . . . . . . . . 1 . . . . . Hauler Manifests 4 | . . . 1 . 1 1 . . . . . . . . . . 1 . Registered Components 2 | . . . 1 . . 1 . . . . . . . . . . . . Zone Layout 6 | . . . . . . 1 2 . . . 2 . . . . . 1 . Proto ID Catalog 1 | . . . . . . . . 1 . . . . . . . . . . Fabricator Hacks 8 | . . . . . . . . . . . 5 3 . . . . . . Network Status 3 | . . . . . . . . . . . 1 2 . . . . . . Load Schematic 3 | . . . . . . . . . . . 2 1 . . . . . . Build 2 | . . . . . . . . . . . 2 . . . . . . . Repair Station Hacks 17 | . 2 . . . . 2 . . . . 2 10 . . . . . 1 Scan Component 9 | . 1 . . . . 1 . . . . 1 6 . . . . . . Repair 7 | . 1 . . . . 1 . . . . 1 4 . . . . . . Refit 1 | . . . . . . . . . . . . . . . . . . 1 Recycling Unit Hacks 3 | . . . . . . . . . . . . 3 . . . . . . Retrieve Components 3 | . . . . . . . . . . . . 3 . . . . . . Scanalyzer 3 | . . . . . 1 . . . 2 . . . . . . . . . Insert Component 2 | . . . . . 1 . . . 1 . . . . . . . . . Analyze 1 | . . . . . . . . . 1 . . . . . . . . . Garrison Access Hacks 5 | . . . . . . 1 . . 1 . 2 . . . . 1 . . Seal Access 5 | . . . . . . 1 . . 1 . 2 . . . . 1 . . Unauthorized Hacks 37 | . 8 . 3 . 1 1 7 . . . 8 5 1 . . . . 3 Terminals 9 | . 6 . 1 . . 1 . . . . . . 1 . . . . . Botnet 4 | . 1 . 1 . . 1 . . . . . . 1 . . . . . Skim 5 | . 5 . . . . . . . . . . . . . . . . . Fabricators 4 | . . . . . . . . . . . 2 2 . . . . . . Overload 1 | . . . . . . . . . . . . 1 . . . . . . Recompile 3 | . . . . . . . . . . . 2 1 . . . . . . Repair Stations 12 | . . . . . . . . . . . 6 3 . . . . . 3 Recycling Units 12 | . 2 . 2 . 1 . 7 . . . . . . . . . . . Tunnel 12 | . 2 . 2 . 1 . 7 . . . . . . . . . . . Fedlink 7 | . . . . . . . . . . . 6 1 . . . . . . Scrapoids 1 | . . . . . . . . . . . . 1 . . . . . . Scraphulk 4 | . . . . . . . . . . . . 1 . . . . . 3 Scanalyzers . | . . . . . . . . . . . . . . . . . . . Garrison Access . | . . . . . . . . . . . . . . . . . . . Data Cores Recovered 1 | . . . 1 . . . . . . . . . . . . . . . Used 1 | . . . 1 . . . . . . . . . . . . . . . Hacking Detections 69 | . 8 . 5 1 9 7 3 . 4 . 10 11 2 1 . 3 2 3 Full Trace Events 6 | . 1 . 1 . . . . . 1 . 2 1 . . . . . . Feedback Events 1 | . . . . . . . . . . . . 1 . . . . . . Corruption 1 | . . . . . . . . . . . . 1 . . . . . . Feedback Blocked . | . . . . . . . . . . . . . . . . . . . Robot Schematics Acquired . | . . . . . . . . . . . . . . . . . . . Robots Built 2 | . . . . . . . . . . . 2 . . . . . . . Authchips . | . . . . . . . . . . . . . . . . . . . Time 76 | . . . . . . . . . . . 76 . . . . . . . Total Robot Build Rating 10 | . . . . . . . . . . . 10 . . . . . . . Part Schematics Acquired 4 | . . . . . . . . . 2 . . 1 . . . 1 . . Parts Built 2 | . . . . . . . . . . . 2 . . . . . . . Authchips 1 | . . . . . . . . . . . 1 . . . . . . . Time 47 | . . . . . . . . . . . 47 . . . . . . . Total Part Build Rating 10 | . . . . . . . . . . . 10 . . . . . . . Parts Repaired 7 | . 1 . . . . 1 . . . . 1 4 . . . . . . Time 239 | . 26 . . . . 38 . . . . 25 150 . . . . . . Parts Recycled . | . . . . . . . . . . . . . . . . . . . Recycled Matter . | . . . . . . . . . . . . . . . . . . . Retrieved Matter . | . . . . . . . . . . . . . . . . . . . Retrieved Components 7 | . . . . . . . . . . . . 7 . . . . . . Parts Scanalyzed 1 | . . . . . . . . . 1 . . . . . . . . . Part Schematics Acquired 1 | . . . . . . . . . 1 . . . . . . . . . Parts Damaged . | . . . . . . . . . . . . . . . . . . . Bothacking | -11 -10 -10 -9 -9 -8 -8 -8 -8 -6 -6 -6 -5 -5 -5 -5 -4 -3 -2 ------------ Run | Yrd Mat Min Mat Min Mat Sto Rec Scr Fac Was Fac Fac Ext Cet Arc Fac Res Res Used RIF Installer . | . . . . . . . . . . . . . . . . . . . Robots Hacked . | . . . . . . . . . . . . . . . . . . . Non-combat . | . . . . . . . . . . . . . . . . . . . Combat . | . . . . . . . . . . . . . . . . . . . Robot Hacks Applied . | . . . . . . . . . . . . . . . . . . . Relay Couplers Released . | . . . . . . . . . . . . . . . . . . . Fabnet Peak Effective % . | . . . . . . . . . . . . . . . . . . . Robots Rewired 9 | . . . . . . . . . . . . . 9 . . . . . Allies Hacked . | . . . . . . . . . . . . . . . . . . . Hacks Repelled . | . . . . . . . . . . . . . . . . . . . Allies | -11 -10 -10 -9 -9 -8 -8 -8 -8 -6 -6 -6 -5 -5 -5 -5 -4 -3 -2 -------- Run | Yrd Mat Min Mat Min Mat Sto Rec Scr Fac Was Fac Fac Ext Cet Arc Fac Res Res Total Allies 45 | . . . . 3 . 12 . . . 1 2 5 15 5 . . . 2 Largest Group 12 | . . . . 3 3 12 6 6 6 1 2 5 9 11 9 5 . 1 Highest-Rated Group 753 | . . . . 76 76 235 139 139 139 31 82 235 361 753 713 480 . 139 Highest-Rated Ally 159 | . . . . 31 31 31 31 31 31 31 41 47 159 152 152 96 . 139 Total Orders 27 | . . . . . . 6 . 6 1 . 1 . 8 3 2 . . . STAY 3 | . . . . . . . . . 1 . . . . 2 . . . . ROAM 3 | . . . . . . 1 . . . . . . 2 . . . . . FOLLOW 2 | . . . . . . . . . . . . . 2 . . . . . GUARD 6 | . . . . . . . . . . . 1 . 4 . 1 . . . AID 3 | . . . . . . 1 . . . . . . . 1 1 . . . EXPLORE 8 | . . . . . . 4 . 4 . . . . . . . . . . RETURN 2 | . . . . . . . . 2 . . . . . . . . . . Ally Attacks 420 | . . . . 6 41 113 5 . 3 8 2 27 46 26 29 87 . 27 Total Damage 11826 | . . . . 63 566 1361 106 . 21 148 41 718 1321 952 1377 3412 . 1740 Kills 84 | . . . . 3 7 17 2 . . . 1 7 12 5 5 15 . 10 Allies Corrupted 1 | . . . . . . 1 . . . . . . . . . . . . Allies Melted 1 | . . . . . . . . . . . . . . . . . . 1 Intel | -11 -10 -10 -9 -9 -8 -8 -8 -8 -6 -6 -6 -5 -5 -5 -5 -4 -3 -2 ------- Run | Yrd Mat Min Mat Min Mat Sto Rec Scr Fac Was Fac Fac Ext Cet Arc Fac Res Res Active Infowar (turns) 7304 | . . . . . . . . 1 238 49 1473 1649 880 306 467 988 685 568 Optics 2299 | . . . . . . . . . . . . . 317 . . 729 685 568 Sensors 1987 | . . . . . . . . . 238 49 996 704 . . . . . . IFF 518 | . . . . . . . . . . . . 58 460 . . . . . Terrain 3 | . . . . . . . . . . . 3 . . . . . . . Structural 881 | . . . . . . . . . . . . . 81 306 467 27 . . Seismic 271 | . . . . . . . . . . . 271 . . . . . . . Machine Analysis 5177 | . . . . . . . . . . . 1318 1649 880 306 467 557 . . Jamming 456 | . . . . . . . . . . . . . 375 81 . . . . ECM 75 | . . . . . . . . 1 . 17 19 11 1 . . 23 . 3 Robot Analysis Total 2 | . . . . . 1 1 . . . . . . . . . . . . Derelict Logs Recovered 4 | . . 3 . 1 . . . . . . . . . . . . . . Drone Launches 21 | . . . . . . 19 . 2 . . . . . . . . . . Drone Recoveries 7 | . . . . . . 5 . 2 . . . . . . . . . . Exploration | -11 -10 -10 -9 -9 -8 -8 -8 -8 -6 -6 -6 -5 -5 -5 -5 -4 -3 -2 ------------- Run | Yrd Mat Min Mat Min Mat Sto Rec Scr Fac Was Fac Fac Ext Cet Arc Fac Res Res Turns Passed 20430 | 3 1054 922 892 1746 2273 1515 1213 3482 265 49 1473 1649 880 306 467 988 685 568 Spaces Moved 13585 | 3 465 373 292 712 950 725 703 1567 388 130 2172 1822 721 218 227 767 302 1048 Core 238 | . . . . . . . . . . . . . . . . 6 47 185 Treads 5744 | . 232 373 81 654 945 725 703 1567 15 . . . . . 182 267 . . Legs 487 | 3 233 . 211 15 . . . . . . . . . . . 16 1 8 Wheels 48 | . . . . 43 5 . . . . . . . . . . . . . Hover 3486 | . . . . . . . . . . . 237 1822 721 218 45 144 225 74 Flight 3582 | . . . . . . . . . 373 130 1935 . . . . 334 29 781 Fastest Speed 20 | 120 120 240 190 165 156 163 170 170 27 27 27 46 52 52 122 45 50 20 Average Speed 116 | 120 179 240 233 235 182 164 170 184 53 27 34 62 82 81 157 101 78 40 Slowest Speed 320 | 120 240 240 320 260 250 241 170 250 170 27 200 141 150 122 240 250 120 120 Overloaded Moves . | . . . . . . . . . . . . . . . . . . . Propulsion Burnouts . | . . . . . . . . . . . . . . . . . . . Robots Hopped 27 | . . . . . . . . . . . 20 . 1 . . . . 6 Potential Cave-ins 10 | . . . . . . . . . . . 5 . . . . 5 . . Cave-ins Triggered . | . . . . . . . . . . . . . . . . . . . Exploration Rate (%) 57 | 1 70 84 27 99 74 91 99 93 11 74 51 41 75 70 83 21 5 22 Regions Visited 18 Branch Regions 8 Pre-discovered Areas 20 | . 5 1 2 3 1 . 7 . . . 1 . . . . . . . Known Exits Taken 10 | . 1 1 1 1 1 . . . . . 1 1 1 1 1 . . . Unknown Exits Taken 6 | 1 . . . . . 1 1 1 . . . . . . . 1 1 . Scrap Searched 7 | . . 2 . 2 . . . 3 . . . . . . . . . . Spaces Dug 178 | . 14 11 . . 1 8 . . 2 . 86 25 1 . . 30 . . Terrain Destroyed 328 | . 45 12 14 9 32 25 1 . 2 . 124 25 1 . . 38 . . Melee 107 | . . . . . . . . . 2 . 69 25 1 . . 10 . . Projectile 70 | . . . . . 13 25 1 . . . 3 . . . . 28 . . AOE 151 | . 45 12 14 9 19 . . . . . 52 . . . . . . . Terrain Rammed . | . . . . . . . . . . . . . . . . . . . Walls Destroyed . | . . . . . . . . . . . . . . . . . . . Machines Disabled . | . . . . . . . . . . . . . . . . . . . Actions | -11 -10 -10 -9 -9 -8 -8 -8 -8 -6 -6 -6 -5 -5 -5 -5 -4 -3 -2 --------- Run | Yrd Mat Min Mat Min Mat Sto Rec Scr Fac Was Fac Fac Ext Cet Arc Fac Res Res Total 17247 | 2 620 391 443 755 1287 962 716 2155 439 143 2704 2191 963 346 320 911 727 1172 Wait 2342 | . 79 . 57 11 137 120 1 564 10 11 352 196 115 115 67 35 379 93 Move 13517 | 2 464 372 291 711 949 724 702 1566 388 129 2133 1821 718 217 226 766 302 1036 Hop 25 | . . . . . . . . . . . 18 . 1 . . . . 6 Pick Up 116 | . 18 4 16 2 15 11 3 7 6 1 10 11 3 1 1 2 2 3 Fast Attach 160 | . 8 1 6 1 5 14 . . 9 1 21 27 19 6 6 13 6 17 Attach 41 | . 2 3 1 . 3 2 . 3 1 . 9 4 3 . . 7 1 2 Detach 27 | . 1 . . . . 2 . 1 . . 8 3 3 . . 8 1 . Swap 88 | . 6 3 6 9 20 4 . 7 7 . 11 9 . . 3 2 1 . Drop 188 | . 6 1 20 4 28 23 3 7 14 1 18 20 6 6 6 14 2 9 Fire 347 | . 34 4 42 10 124 53 4 . . . 8 . . 1 . 45 18 4 Melee 246 | . . . . . . . . . 3 . 113 81 24 . 11 14 . . Ram 9 | . . . . 1 . . . . . . 3 . . . . 3 . 2 Kick 20 | . 1 . 4 . . . . . . . . . . . . . 15 . Crush 23 | . 1 3 . 6 6 2 3 . . . . . . . . 2 . . Escape Stasis 29 | . . . . . . . . . . . . 19 10 . . . . . Rewire 61 | . . . . . . . . . . . . . 61 . . . . . Trap 1 | . . . . . . . . . 1 . . . . . . . . . Miscellaneous 7 | . . . . . . 7 . . . . . . . . . . . . Route ------- -11/Scrapyard -10/Materials (discovered 5 exits: *Mat x2 / *Min x2 / [*Sub]) -10/Mines -9/Materials (discovered 5 exits: Mat x3 / *Min x2) -9/Mines (discovered 3 exits: *Mat x2 / [*Exi]) -8/Materials (discovered 4 exits: *Fac x2 / *Sto x2) -8/Storage (discovered 2 exits: *Fac / *Rec) -8/Recycling (discovered 2 exits: *Fac / *Scr) -8/Scraptown (discovered 2 exits: *Fac x2) -6/Factory -6/Waste -6/Factory -5/Factory (discovered 3 exits: *Fac / *Upp / *Ext) -5/Extension (discovered 2 exits: *Fac / *Cet) -5/Cetus -5/Archives (discovered 3 exits: *Fac / [*Hub x2]) -4/Factory -3/Research -2/Research (discovered 2 exits: Qua x2) History --------- Turn | Location | Event 1 | -11/Scrapyard | Discovered new exit (range 1) 4 | -11/Scrapyard | Entered Materials 250 | -10/Materials | Discovered new exit (range 16) 313 | -10/Materials | Build established: Mutant 383 | -10/Materials | Discovered new exit (range 15) 499 | -10/Materials | Core integrity fell below 50% 711 | -10/Materials | Lost 3 parts (1p2w) 817 | -10/Materials | Repaired Lgt. Treads 879 | -10/Materials | Discovered new exit (range 6) 981 | -10/Materials | Learned 2 Mines zone layouts 1002 | -10/Materials | Identified exit to Mines 1002 | -10/Materials | Identified exit to Materials 1015 | -10/Materials | Learned Materials emergency access door positions 1018 | -10/Materials | Learned Storage machine intel 1019 | -10/Materials | Learned location of Recycling (-8) 1030 | -10/Materials | Learned location of Subcaves (-10) 1058 | -10/Materials | Entered Mines 1079 | -10/Mines | Met a Derelict bent on vengeance 1285 | -10/Mines | Learned 8 Materials zone layouts 1530 | -10/Mines | Learned 4 Materials zone layouts 1551 | -10/Mines | Build established: Scavenger-Mutant 1766 | -10/Mines | Assembled infested the area 1856 | -10/Mines | Learned location of Mines (-8) 1980 | -10/Mines | Entered Materials 1980 | -9/Materials | Evolved 2 slots: Propulsion x1, Utility x1 1981 | -9/Materials | Identified exit to Mines 1981 | -9/Materials | Identified exit to Materials 2442 | -9/Materials | Build established: Mutant 2872 | -9/Materials | Entered Mines 2953 | -9/Mines | Deemed a non-threat by the Exiles lab entrance 2955 | -9/Mines | Discovered new exit (range 5) 3365 | -9/Mines | Found a hidden stash of uninstalled traps 3815 | -9/Mines | Learned location of Storage (-8) 3976 | -9/Mines | Escorted by a lone wolf Derelict 4531 | -9/Mines | Discovered exit to Materials (range 6) 4536 | -9/Mines | Discovered exit to Materials (range 7) 4618 | -9/Mines | Entered Materials 4618 | -8/Materials | Accompanied by 3 allies 4618 | -8/Materials | Evolved 2 slots: Propulsion x1, Utility x1 4623 | -8/Materials | Led the pair of lost Derelicts to an unsafe place 5438 | -8/Materials | Destroyed 7 combat bots 5491 | -8/Materials | Build established: Scavenger-Mutant 6071 | -8/Materials | Build established: Mutant 6104 | -8/Materials | Discovered new exit (range 14) 6133 | -8/Materials | Identified exit to Factory 6465 | -8/Materials | Garrison activated, responded to threat 6476 | -8/Materials | Identified exit to Storage 6597 | -8/Materials | Discovered exit to Factory (range 16) 6891 | -8/Materials | Entered Storage 6892 | -8/Storage | Loaded intel: 43 machine locations 7283 | -8/Storage | Used back door to open Recycling access 7283 | -8/Storage | Discovered new exit (range 5) 7439 | -8/Storage | Repaired Hvy. Armor Plating 7490 | -8/Storage | Discovered exit to Factory (range 14) 7657 | -8/Storage | Lost 3 allies 7875 | -8/Storage | Assisted by bots powering up and referring to "LRC-V3" 7913 | -8/Storage | Met a pair of Derelict thieves 8121 | -8/Storage | Lost 6 allies 8164 | -8/Storage | Build established: Commander-Mutant 8406 | -8/Storage | Entered Recycling 8406 | -8/Recycling | Accompanied by 6 allies 9375 | -8/Recycling | Discovered new exit (range 11) 9574 | -8/Recycling | Scanned before Scraplab entrance 9598 | -8/Recycling | Entered Scraplab 9613 | -8/Recycling | Discovered new exit (range 3) 9619 | -8/Recycling | Entered Scraptown 9619 | -8/Scraptown | Accompanied by 6 allies 9808 | -8/Scraptown | Discovered new exit (range 90) 10087 | -8/Scraptown | Visited UFD Registry 10087 | -8/Scraptown | Registered with UFD as "Flashskull" 10105 | -8/Scraptown | Visited CR-KLE's Repair Center 10290 | -8/Scraptown | Discovered new exit (range 68) 10487 | -8/Scraptown | Visited Awakened 11211 | -8/Scraptown | Visited Cave Peace 11284 | -8/Scraptown | Visited Scrapoid Pod Storage 11311 | -8/Scraptown | Visited Science Guys 11371 | -8/Scraptown | Visited Observation Area 11459 | -8/Scraptown | Visited Scrap Suit Storage 11481 | -8/Scraptown | Visited Curators Association 11507 | -8/Scraptown | Visited Botcube Research 11544 | -8/Scraptown | Visited Junk Repository 11585 | -8/Scraptown | Visited Chapter 10 11691 | -8/Scraptown | Visited LU-1G1's Boring Crew 11853 | -8/Scraptown | Found Lrg. Botcube 12981 | -8/Scraptown | Met Optimus 12981 | -8/Scraptown | Accepted into 0bPrime 13101 | -8/Scraptown | Entered Factory 13101 | -6/Factory | Accompanied by 6 allies 13101 | -6/Factory | Evolved 4 slots: Propulsion x1, Utility x3 13366 | -6/Factory | Sucked down chute 13366 | -6/Factory | Entered Waste 13367 | -6/Waste | Met a frightened Derelict 13369 | -6/Waste | Spotted C-40 Crusher 13370 | -6/Waste | Spotted C-40 Crusher 13373 | -6/Waste | Spotted C-40 Crusher 13376 | -6/Waste | Spotted C-40 Crusher 13376 | -6/Waste | Spotted C-40 Crusher 13388 | -6/Waste | Discovered new exit (range 13) 13388 | -6/Waste | Spotted C-40 Crusher 13393 | -6/Waste | Identified exit to Factory 13415 | -6/Waste | Entered Factory 13493 | -6/Factory | Loaded intel: 8 recycling unit locations 13537 | -6/Factory | Learned location of Protoforge (-2) 13800 | -6/Factory | Fabricated Cmb. Airjet? 13877 | -6/Factory | Build established: Hacker-Scout 14025 | -6/Factory | Destroyed 7 combat bots 14056 | -6/Factory | Lost 5 parts (1p1n2u1w) 14115 | -6/Factory | Search patrols dispatched 14281 | -6/Factory | Repaired Cmb. Airjet 14465 | -6/Factory | Search patrols dispatched 14730 | -6/Factory | Core integrity fell below 50% 14761 | -6/Factory | Fabricated H-66 Slayer (x2) 14792 | -6/Factory | Lost 3 parts (1p2n) 14877 | -6/Factory | Core integrity fell below 20% 14881 | -6/Factory | Discovered new exit (range 15) 14888 | -6/Factory | Identified exit to Factory 14888 | -6/Factory | Entered another Factory area 14888 | -5/Factory | Evolved 2 slots: Utility x2 14989 | -5/Factory | Discovered new exit (range 11) 14995 | -5/Factory | Identified exit to Upper Caves 15053 | -5/Factory | Repaired Cmb. Airjet 15101 | -5/Factory | Repaired Cmb. Airjet 15201 | -5/Factory | Build established: Hacker-Ninja 15289 | -5/Factory | Discovered new exit (range 10) 15296 | -5/Factory | Identified exit to Factory 15416 | -5/Factory | Loaded intel: 8 recycling unit locations 15996 | -5/Factory | Build established: Hacker-Mutant 16055 | -5/Factory | Repaired Cmb. Airjet 16106 | -5/Factory | Repaired Cmb. Airjet? 16332 | -5/Factory | System corruption reached 10% 16425 | -5/Factory | Core integrity fell below 50% 16435 | -5/Factory | Scrapoid reinforcements arrived 16457 | -5/Factory | P-70 Sage assimilated allied 05F01-D 16458 | -5/Factory | Lost 3 parts (1p1n1u) 16494 | -5/Factory | Lost 4 allies 16534 | -5/Factory | Discovered new exit (range 6) 16536 | -5/Factory | Identified exit to Extension 16537 | -5/Factory | Entered Extension 16586 | -5/Extension | Rescued a captive Derelict 16987 | -5/Extension | Spotted B-75 Beast 16987 | -5/Extension | Spotted B-75 Beast 17008 | -5/Extension | Rescued a captive Derelict 17008 | -5/Extension | Rescued a captive Derelict 17034 | -5/Extension | Lost 3 allies 17041 | -5/Extension | Lost 9 parts (4n5u) 17043 | -5/Extension | Rescued a captive Derelict 17055 | -5/Extension | Rescued a captive Derelict 17142 | -5/Extension | Build established: Hacker-Gladiator 17143 | -5/Extension | Rescued a captive Derelict 17236 | -5/Extension | Rescued A7 17375 | -5/Extension | Discovered exit to Factory (range 10) 17390 | -5/Extension | Discovered new exit (range 7) 17391 | -5/Extension | Found Prototype Protection 17391 | -5/Extension | Identified Med. Regenerative Plating 17404 | -5/Extension | Identified exit to Cetus 17417 | -5/Extension | Entered Cetus 17417 | -5/Cetus | Accompanied by 8 allies (A7) 17422 | -5/Cetus | Acquired a Cetus Manufacturing Module code from A7 17472 | -5/Cetus | Spotted Cetus Guard 17473 | -5/Cetus | Allies destroyed Cetus Guard 17479 | -5/Cetus | Spotted Cetus Guard 17480 | -5/Cetus | Allies destroyed Cetus Guard 17485 | -5/Cetus | Spotted Cetus Guard 17495 | -5/Cetus | Allies destroyed Cetus Guard 17518 | -5/Cetus | Started Cetus Manufacturing Module 17543 | -5/Cetus | Manufactured an Enhanced Grunt 17568 | -5/Cetus | Manufactured an Enhanced Grunt 17575 | -5/Cetus | Escorted A7 to Cetus Mainframe 17593 | -5/Cetus | Manufactured an Enhanced Grunt 17618 | -5/Cetus | Manufactured an Enhanced Grunt 17631 | -5/Cetus | Build established: Commander-Mutant 17643 | -5/Cetus | Manufactured an Enhanced Grunt 17677 | -5/Cetus | Discovered new exit (range 15) 17694 | -5/Cetus | Identified exit to Archives 17723 | -5/Cetus | Entered Archives 17723 | -5/Archives | Accompanied by 9 allies (A7) 17728 | -5/Archives | Received a hacking code to weaken MAIN.C 17836 | -5/Archives | Lost 3 allies 17836 | -5/Archives | Discovered new exit (range 15) 17862 | -5/Archives | Discovered exit to Factory (range 16) 18083 | -5/Archives | Discovered new exit (range 13) 18190 | -5/Archives | Entered Factory 18190 | -4/Factory | Accompanied by 5 allies 18190 | -4/Factory | Evolved 2 slots: Utility x1, Weapon x1 18229 | -4/Factory | Garrison activated, responded to threat 18318 | -4/Factory | Build established: Wizard-Mutant 18458 | -4/Factory | Discovered new exit (range 11) 18579 | -4/Factory | Garrison activated, responded to threat 18749 | -4/Factory | Spotted B-86 Titan 19178 | -4/Factory | Entered Research 19178 | -3/Research | Evolved 2 slots: Power x1, Propulsion x1 19456 | -3/Research | Discovered new exit (range 12) 19863 | -3/Research | Entered another Research area 19863 | -2/Research | Evolved 2 slots: Utility x1, Weapon x1 19888 | -2/Research | Lost 7 parts (3n3u1w) 20062 | -2/Research | Scraphulk reinforcements arrived? 20135 | -2/Research | Build established: Hacker-Mutant 20310 | -2/Research | Spotted B-90 Cyclops 20321 | -2/Research | Scraphulk reinforcements arrived? 20373 | -2/Research | Lost 5 parts (1p3n1u) 20399 | -2/Research | Identified exit to Quarantine 20422 | -2/Research | Core integrity fell below 50% 20430 | -2/Research | Core integrity fell below 20% 20431 | -2/Research | Destroyed by G-73 Enforcer with Heavy Laser Last Messages --------------- 20410_ Acquired Exp. Q-thruster. 20413_ Imp. Targeting Computer destroyed. 20419_ W-44 Eye sends out distress signal. 20419_ Slammed into W-44 Eye. 20421_ System Shield destroyed. 20422_ Imp. Hacking Suite severed. 20427_ Exp. Q-thruster severed. 20427_ Penetrated by Slug. 20428_ Slug penetrates Door. 20428_ Penetrated by Slug. 20428_ Acquired Exp. Q-thruster. 20429_ Slug penetrates Wall. 20429_ Core Analyzer destroyed. 20429_ Slug penetrates Wall. 20431_ Authchip [Propulsion] destroyed. 20431_ Exp. Q-thruster destroyed. 20431_ Slug penetrates G-73 Enforcer. 20431_ Penetrated by Slug. 20431_ Slug penetrates Wall. 20431_ Penetrated by Slug. Map ----- +----------------------------------------------------+ | ???##########???# #??# #??????????????????????? | | ???# ???# #??# #??????????????????????? | | ???# ??# ####+######?????????????????? | | ???# ??# # ! #?????????????????? | | ???# ?# # #?????????????????? | | ???# ?# # """"#?????????????????? | | ???# # # """"#?????????????????? | | ???# # / """"#?????????????????? | | ???# + # """"#?????????????????? | | ???# ! # # #?????????????????? | | ???# # # ! #?????????????????? | | ???# ?# #####+#####?????????????????? | | ???# ?# #???? #?????????????????????? | | ???############## #???#h#?????????????????????? | | ?????????# #???#H#?????????????????????? | | ?????????# #???# #?????????????????????? | | ?????????# #???# #??????###????????????? | | ?????????# #???# #????? ???????????? | | ?????????# ########???# #???? ???????????? | | ?????????# #??????????#h#???""" ""???????????? | | ?????????# ############%##? """ """ ?????????? | | ?????????+ ss g #= """ """ #???????? | | ?????????# # #???????? | | ?????????# c ghh ; ?????????? | | ?????????# c g g #?????????? ?????????? | | ?????????#####"T########g@ #?????????? ????###+# | | ?????????????#""#??????# #??????????? ##### | | ?????????????########### #????????????+ | | ????????????????# #????????????# | | ????????????????# ############## | | ??????########### | | ??????# # ########### | | ??????# # ####+#+#?????????# | | ??????# # #??? ????????# | | ??????# # #? ??????# | | ??????# + # !????# | | ??????# # # != ??# | | ??????# # # ! #?# ###### | | ??????# + # #?# #????# | | ??????##############+#####/############+####### | | ??????????????# ! # # | | ??????????????# # + | | ??????????????# """ """ """ # # | | ??????????????# """ """ """ # # | | ??????????????# """ """ """ # # | | ??????????????# # # | | ??????????????# ############### | | ??????????########+####/#####################?# | | ??????????# + # # ?# | | ??????????# # " # # | +----------------------------------------------------+ Best States ------------- Heat Dissipation 56 Energy Generation 29 Energy Capacity 500 Matter Stores 300 Matter Capacity 300 Sight Range 23 Robot Scan Range 16 Terrain Scan Density 10 ECM Strength 2 Jamming Range 14 Armor Coverage 675 Resistance: EM 20 Evasion (%) 72 Targeting Accuracy 8 Melee Accuracy 8 Core Analysis 6 Recoil Reduction 4 Salvage Targeting 3 Offensive Hacking 48 Defensive Hacking 38 Authchip Count 3 Trap Extractor Capacity 6 Item Schematics ----------------- Phase Cannon | -6/Factory | Hacked Cmb. Airjet | -6/Factory | Scanalyzed Cld. Nuclear Pulse Thruster | -5/Factory | Hacked Cmb. Linear Gravjet | -4/Factory | Hacked Robot Schematics ------------------ None Fabricated ------------ Cmb. Airjet | x2 | -6/Factory | Authchip H-66 Slayer | x2 | -6/Factory | Preloaded Repaired ---------- Lgt. Treads | 45% | -10/Materials Hvy. Armor Plating | 13% | -8/Storage Cmb. Airjet | 12% | -6/Factory Cmb. Airjet | 14% | -5/Factory Cmb. Airjet | 30% | -5/Factory Cmb. Airjet | 15% | -5/Factory Cmb. Airjet | 17% | -5/Factory Alien Tech Used ----------------- None Achievements -------------- None Challenges ------------ None Game ------ Seed CarbideMatterUnit Manual? 0 Play Time 02:51:25 Cumulative 203.7 hours Start 2025.05.06 @ 14:15:21 End 2025.05.06 @ 17:16:45 Sessions 3 Manual Loads 0 Difficulty Rogue Special Mode None Game No. 74 Rogue 74 Adventurer 0 Explorer 0 Win Type - Total 4 Types 1/0/2/0/0/0/0/0/0/1 Lore% 65 Gallery% 74 Achievement% 69 Wizard Run 0 Options --------- Layout 1 ASCII 0 Keyboard 1 Movement Arrows Keybinds 0 Fullscreen 2 Font 24/Smallcaps Map View 50x35 Zoom Use 0% Tactical HUD 1 Map Filters NONE Filters NONE Steam 1 RUN: 142cc4b4-664d-479d-8ce0-e361e20eed67